Workbook

Sheet QTY's for PO's
B1: Description | C1: Quantity | D1: Unit | E1: Unit Price | F1: =SUM(C:C*E:E) -> 
F2: =SUM(C2*E2) -> 0 | J2: Stone | K2: =sumcellsbycolor(C:C,J2) -> 937
F3: 0 | J3: Rebar | K3: =sumcellsbycolor(C:C,J3) -> 68.1
F4: 0 | J4: Expansion Joint | K4: =sumcellsbycolor(C:C,J4) -> 3309 | L4: LF
F5: 0 | J5: Waterstop
F6: 0
B7: Parking | C7: 900 | D7: days | E7: 10 | F7: 9000
F8: 0
F9: 0
A10: 51 | B10: Footer 2' x 1' x 223' | C10: 17 | D10: cy | E10: 275 | F10: 4675
A11: 28 | B11: 3' x 1'6" x 82' | C11: 14 | D11: cy | E11: 275 | F11: 3850
A12: 328 | B12: 4' x 1'6" x 738' | C12: 164 | D12: cy | E12: 275 | F12: 45100
A13: 72 | B13: 5' x 1'6" x 129' | C13: 36 | D13: cy | E13: 275 | F13: 9900
A14: 34 | B14: 6' x 1'6" x 51' | C14: 17 | D14: cy | E14: 275 | F14: 4675
A15: 12 | B15: Column Footer 10' x 10' x 3' 1 EA | C15: 12 | D15: cy | E15: 275 | F15: 3300
A16: 31 | B16: 5' x 5' x 1'6" 11 EA | C16: 16 | D16: cy | E16: 275 | F16: 4400
A17: 32 | B17: 6' x 6' x 1'6" 8 EA | C17: 16 | D17: cy | E17: 275 | F17: 4400
A18: 24 | B18: 6' x 6' x 2' 6 EA | C18: 16 | D18: cy | E18: 275 | F18: 4400
A19: 115 | B19: 7' x 7' x 2' 21 EA | C19: 77 | D19: cy | E19: 275 | F19: 21175
A20: 100 | B20: 8' x 8' x 2'6" 14 EA | C20: 83 | D20: cy | E20: 275 | F20: 22825
A21: 31 | B21: Elevator Pit Fdn 2'6" Thick x 279 SF | C21: 26 | D21: cy | E21: 275 | F21: 7150
A22: 59 | B22: Tower Crane Fdn 5'8" Thick x 531 SF | C22: 112 | D22: cy | E22: 275 | F22: 30800
A23: =SUM(A10:A22) -> 917 | B23: Concrete Sump Pit | C23: 2 | D23: Each | E23: 500 | F23: 1000
B24: Extra Concrete 10% | C24: =ROUNDUP(SUM(C10:C22)*0.1,0) -> 61 | D24: cy | E24: 185 | F24: 11285
B25: Additional Excavation | C25: 240 | D25: cy | E25: 35 | F25: 8400
B26: Footer Steps 2' x 2' | C26: 5 | D26: Each | E26: 200 | F26: 1000
B27: 2'8" x 2' | C27: 5 | D27: Each | E27: 225 | F27: 1125
B28: 8" x 3' | C28: 1 | D28: Each | E28: 225 | F28: 225
B29: 2' x 3' | C29: 2 | D29: Each | E29: 300 | F29: 600
B30: 8" x 4' | C30: 1 | D30: Each | E30: 300 | F30: 300
B31: 1'4" x 4' | C31: 14 | D31: Each | E31: 400 | F31: 5600
B32: 2' x 4' | C32: 6 | D32: Each | E32: 400 | F32: 2400
B33: 2'8" x 4' | C33: 3 | D33: Each | E33: 425 | F33: 1275
B34: 1'4" x 5' | C34: 5 | D34: Each | E34: 500 | F34: 2500
B35: Waterstop at Sump Pit | C35: 16 | D35: lf | E35: 17 | F35: 272
B36: Pumping Footers Under Ramp | C36: 1 | D36: days | E36: 2500 | F36: 2500
F37: 0
F38: 0
B39: Anchor Bolts & Leveling Plates (Install Only) | C39: 49 | D39: Each | E39: 110 | F39: 5390
F40: =SUM(C40*E40) -> 0
F41: =SUM(C41*E41) -> 0
B42: CIP Elev. Pit Walls 1' x 5' x 69' | C42: 13 | D42: cy | E42: 170 | F42: =SUM(C42*E42) -> 2210
B43: Forming | C43: 828 | D43: sft | E43: 8 | F43: =SUM(C43*E43) -> 6624
F44: =SUM(C44*E44) -> 0
F45: 0
B46: Conc. Col. Encasement 26" Diam x 3'8" (5000 PSI) | C46: 9 | D46: Each | E46: 350 | F46: 3150
B47: 26" Diam x 4'4" | C47: 5 | D47: Each | E47: 450 | F47: 2250
B48: 26" Diam x 4'6" | C48: 19 | D48: Each | E48: 450 | F48: 8550
B49: 26" Diam x 5'6" | C49: 2 | D49: Each | E49: 550 | F49: 1100
B50: 26" Diam x 8'4" | C50: 1 | D50: Each | E50: 850 | F50: 850
B51: 36" Diam x 14'4" | C51: 1 | D51: Each | E51: 1500 | F51: 1500
B52: 36" Diam x 3'4" | C52: 1 | D52: Each | E52: 450 | F52: 450
B53: 36" Diam x 3'5" | C53: 2 | D53: Each | E53: 450 | F53: 900
B54: 36" Diam x 4'4" | C54: 1 | D54: Each | E54: 550 | F54: 550
B55: 36" Diam x 5'4" | C55: 4 | D55: Each | E55: 650 | F55: 2600
B56: 2' x 2' x 2'4" | C56: 3 | D56: Each | E56: 250 | F56: 750
B57: 2' x 2' x 2'6" | C57: 1 | D57: Each | E57: 250 | F57: 250
B58: 2' x 2' x 4'2" | C58: 3 | D58: Each | E58: 425 | F58: 1275
B59: 2' x 2' x 7'6" | C59: 2 | D59: Each | E59: 750 | F59: 1500
B60: 2' x 2' x 8'10" | C60: 1 | D60: Each | E60: 875 | F60: =SUM(C60*E60) -> 875
B61: 3'6" x 3'6" x 7'6" | C61: 1 | D61: Each | E61: 1000 | F61: 1000
B62: 3'6" x 3'6" x 9'10" | C62: 2 | D62: Each | E62: 1200 | F62: 2400
B63: SOD Column Encasements | C63: 24 | D63: Each | E63: 600 | F63: 14400
B64: Drill & Epoxy to Footer | C64: 54 | D64: Each | E64: 9 | F64: 486
B65: Finishing top of Piers | C65: 48 | D65: Each | E65: 50 | F65: 2400
B66: Pumping | C66: 3 | D66: Days | E66: 2000 | F66: 6000
F67: =SUM(C67*E67) -> 0
F68: =SUM(C68*E68) -> 0
B69: Rebar - Quote | C69: 68 | D69: tons | E69: 2300 | F69: =SUM(C69*E69) -> 156400
F70: =SUM(C70*E70) -> 0
F71: 0
B72: 5" Parking Level 2 Slab on Grade (5000 PSI) | C72: 5230 | D72: sft | E72: 3.2 | F72: 16736
B73: 4" Stone Base | C73: 102 | D73: tons | E73: 50 | F73: 5100
B74: 6 GA Mesh Galvanized | C74: =ROUNDUP(C72*1.17,0) -> 6120 | D74: sft | E74: 0.7 | F74: 4284
B75: Cure & Seal | C75: =+C72 -> 5230 | D75: sft | E75: 0.15 | F75: 784.5
B76: Expansion Joint | C76: 420 | D76: lf | E76: 1 | F76: 420
B77: Saw Cuts | C77: =ROUNDUP(C72/7.5,0) -> 698 | D77: lf | E77: 1.1 | F77: 767.8
B78: Forming Construction Joints | C78: 87 | D78: lf | E78: 8 | F78: =SUM(C78*E78) -> 696
B79: Stainless Steel Dowels #6 @ 18" OC | C79: 60 | D79: Each | E79: 9 | F79: =SUM(C79*E79) -> 540
B80: Cont. Dowel Bars 2 - #4s | C80: 0.1 | D80: tons | E80: 2300 | F80: =SUM(C80*E80) -> 230
B81: Thickened Slab 2' x 3" x 87' | C81: 2 | D81: cy | E81: 175 | F81: =SUM(C81*E81) -> 350
B82: Pumping | C82: 2 | D82: days | E82: 2500 | F82: 5000
F83: 0
F84: 0
B85: 5" Parking Level 1 Slab on Grade (5000 PSI) | C85: 24075 | D85: sft | E85: 3.2 | F85: 77040
B86: 4" Stone Base | C86: 469 | D86: tons | E86: 40 | F86: 18760
B87: 6 GA Mesh Galvanized | C87: =ROUNDUP(C85*1.17,0) -> 28168 | D87: sft | E87: 0.7 | F87: 19717.6
B88: Cure & Seal | C88: =+C85 -> 24075 | D88: sft | E88: 0.15 | F88: 3611.25
B89: Expansion Joint | C89: 700 | D89: lf | E89: 1 | F89: 700
B90: Saw Cuts | C90: =ROUNDUP(C85/7.5,0) -> 3210 | D90: lf | E90: 1.1 | F90: 3531
B91: Forming Construction Joint | C91: 504 | D91: lf | E91: 8 | F91: 4032
B92: Haunch Slab Edge 2' x 3" x 504'' | C92: 10 | D92: cy | E92: 175 | F92: 1750
B93: Stainless Steel Dowels #6 @ 18" OC | C93: 340 | D93: Each | E93: 9 | F93: 3060
B94: Cont. Dowel Bars 2 - #4s | C94: 0.5 | D94: tons | E94: 2300 | F94: 1150
B95: Thickened Slab at Stairs 2' x 5" x 10' | C95: 1 | D95: cy | E95: 175 | F95: 175
B96: Tellabelt | C96: 1 | D96: days | E96: 2000 | F96: =SUM(C96*E96) -> 2000
B97: Pumping | C97: 2 | D97: days | E97: 2250 | F97: 4500
F98: 0
F99: 0
B100: 5.5" TT LW Parking Level 1 Slab on Deck (5000 PSI) | C100: 19524 | D100: sft | E100: 4.25 | F100: 82977
B101: Chairs | C101: 4881 | D101: lf | E101: 0.75 | F101: 3660.75
B102: Cure & Seal | C102: =+C100 -> 19524 | D102: sft | E102: 0.15 | F102: 2928.6
B103: Forming Construction Joint | C103: 482 | D103: lf | E103: 8 | F103: 3856
B104: CJ Dowels #4's @18" OC | C104: 325 | D104: Each | E104: 6 | F104: 1950
B105: Pumping | C105: 2 | D105: Days | E105: 3500 | F105: 7000
F106: 0
F107: 0
B108: 5" 1st Fl Slab on Grade (4000 PSI) | C108: 5419 | D108: sft | E108: 3.05 | F108: 16527.95
B109: 4" Stone Base | C109: 106 | D109: tons | E109: 40 | F109: 4240
B110: 6 GA Mesh | C110: =ROUNDUP(C108*1.17,0) -> 6341 | D110: sft | E110: 0.5 | F110: 3170.5
B111: Cure & Seal | C111: =+C108 -> 5419 | D111: sft | E111: 0.15 | F111: 812.85
B112: 15 Mil Stego Wrap | C112: =ROUNDUP(C108*1.1,0) -> 5961 | D112: sft | E112: 0.31 | F112: 1847.91
B113: Perimeter Insulation 4' x 356' | C113: 1424 | D113: sft | E113: 2.1 | F113: 2990.4
B114: Expansion Joint | C114: 250 | D114: lf | E114: 1 | F114: 250
B115: Saw Cuts | C115: =ROUNDUP(C108/7.5,0) -> 723 | D115: lf | E115: 1.1 | F115: 795.3
B116: Forming Slab Edge | C116: 81 | D116: lf | E116: 6 | F116: 486
B117: Haunch Slab Edge 2' x 2" x 356' | C117: 5 | D117: cy | E117: 175 | F117: 875
B118: Extra Concrete at Doorways | C118: 3 | D118: cy | E118: 175 | F118: 525
F119: 0
F120: 0
B121: 5.5" TT LW 1st Fl Slab on Deck (5000 PSI) | C121: 13042 | D121: sft | E121: 4.1 | F121: 53472.2
B122: Chairs | C122: 3300 | D122: lf | E122: 0.75 | F122: 2475
B123: Cure & Seal | C123: =+C121 -> 13042 | D123: sft | E123: 0.15 | F123: 1956.3
B124: Forming Construction Joint | C124: 57 | D124: lf | E124: 8 | F124: 456
B125: Dowels | C125: 40 | D125: Each | E125: 6 | F125: 240
B126: Ramps | C126: 339 | D126: sft | E126: 3.37 | F126: 1142.43
B127: CIP Steps | C127: 14 | D127: lf | E127: 65 | F127: 910
B128: 5.5" Landing | C128: 35 | D128: sft | E128: 4.1 | F128: 143.5
B129: Insulation Under Landing 4.5" x 35 SF | C129: 35 | D129: sft | E129: 3.5 | F129: 122.5
B130: Pumping | C130: 1 | D130: Days | E130: 3000 | F130: =SUM(C130*E130) -> 3000
B131: Pumping Ramps & Stairs | C131: 1 | D131: Days | E131: 900 | F131: =SUM(C131*E131) -> 900
F132: =SUM(C132*E132) -> 0
F133: 0
B134: 4" 1st Fl Slab on Insulation | C134: 4618 | D134: sft | E134: 2.64 | F134: 12191.52
B135: Insulation at Generator Room 325 SF x 2'9" | C135: 325 | D135: sft | E135: 19.85 | F135: 6451.25
B136: Insulation at Entrance Ramp 543 SF x 1'6" | C136: 543 | D136: sft | E136: 15.86 | F136: 8611.98
B137: 6" Insulation on SOD (Around Fitness & at Maint. Rooms) | C137: 1482 | D137: sft | E137: 4.5 | F137: 6669
B138: 8" Insulation on SOD (Around Fitness & at Maint. Rooms) | C138: 2268 | D138: sft | E138: 5.6 | F138: 12700.8
B139: Chairs at Ramp | C139: 300 | D139: lf | E139: 0.7 | F139: 210
B140: W4.2xW4.2 GA Mesh at Ramp | C140: 2750 | D140: sft | E140: 0.6 | F140: 1650
B141: 10 GA Mesh | C141: 4768 | D141: sft | E141: 0.36 | F141: 1716.48
B142: Cure & Seal | C142: =+C134 -> 4618 | D142: sft | E142: 0.15 | F142: 692.7
B143: Drill & Epoxy to CMU #4's 18" OC | C143: 30 | D143: Each | E143: 9 | F143: 270
A144: 222 | B144: Turndown to SOD 8" x 2'9" x 37' | C144: 3 | D144: cy | E144: 165 | F144: 495
A145: 148 | B145: 8" x 1'6" Avg x 37' | C145: 2 | D145: cy | E145: 165 | F145: 330
A146: =SUM(A144:A145) -> 370 | B146: Forming | C146: 370 | D146: sft | E146: 8 | F146: 2960
B147: Haunch Slab Edge 8" x 6" x 90' | C147: 2 | D147: cy | E147: 175 | F147: 350
B148: 6" x 2" x 136' | C148: 1 | D148: cy | E148: 175 | F148: 175
B149: Pumping with Shored Slab | C149: 1 | D149: Days | E149: 3000 | F149: =SUM(C149*E149) -> 3000
F150: =SUM(C150*E150) -> 0
F151: 0
B152: 10" 1st Fl. Shored Slab (Transformer) | C152: 313 | D152: sft | E152: 5.1 | F152: 1596.3
B153: Chairs (Plastic Tipped) | C153: 200 | D153: lf | E153: 0.85 | F153: 170
B154: Cure & Seal | C154: =+C152 -> 313 | D154: sft | E154: 0.15 | F154: 46.95
B155: Shoring or backfill with dirt | C155: 313 | D155: sft | E155: 15 | F155: 4695
B156: Forming Slab Edge | C156: 35 | D156: lf | E156: 10 | F156: 350
B157: Safety Cables | C157: 35 | D157: lf | E157: 8 | F157: 280
B158: Drill & Eqoxy Dowels | C158: 25 | D158: Each | E158: 9 | F158: 225
F159: 0
F160: 0
B161: 6.5" TT LW 2nd Fl. Slab on Deck (4000 PSI) | C161: 31316 | D161: sft | E161: 4.36 | F161: 136537.76
B162: 6 GA Mesh | C162: =ROUNDUP(C161*1.17,0) -> 36640 | D162: sft | E162: 0.5 | F162: 18320
B163: Cure & Seal | C163: =+C161 -> 31316 | D163: sft | E163: 0.15 | F163: 4697.4
B164: Construction Joint | C164: 70 | D164: lf | E164: 8 | F164: 560
B165: Dowels | C165: 50 | D165: each | E165: 7 | F165: 350
B166: Pumping | C166: 2 | D166: Days | E166: 3000 | F166: 6000
F167: 0
F168: 0
B169: 6.5" TT LW 3rd Fl. Slab on Deck (4000 PSI) | C169: 1010 | D169: sft | E169: 4.51 | F169: 4555.1
B170: 6 GA Mesh | C170: =ROUNDUP(C169*1.17,0) -> 1182 | D170: sft | E170: 0.5 | F170: 591
B171: Cure & Seal | C171: =+C169 -> 1010 | D171: sft | E171: 0.15 | F171: 151.5
B172: Pumping | C172: 1 | D172: Days | E172: 1500 | F172: 1500
F173: 0
F174: 0
B175: Bollards (IO) | C175: 10 | D175: Each | E175: 225 | F175: 2250
F176: 0
F177: 0
B178: 4" Sidewalks | C178: 4392 | D178: sft | E178: 4.7 | F178: 20642.4
B179: 4" Stone Base | C179: 86 | D179: tons | E179: 40 | F179: 3440
B180: Add'l 4" Stone at FFS (480 SF) | C180: 10 | D180: tons | E180: 40 | F180: 400
B181: 10 GA Mesh | C181: =ROUNDUP(C178*1.17,0) -> 5139 | D181: sft | E181: 0.36 | F181: 1850.04
B182: Expansion Joint | C182: 220 | D182: lf | E182: 1.1 | F182: 242
B183: Cure & Seal | C183: =+C178 -> 4392 | D183: sft | E183: 0.15 | F183: 658.8
B184: Haunch at Building 491 x 1' x 4" | C184: 7 | D184: cy | E184: 175 | F184: 1225
B185: Turndown at Building 491' x 8" x 2'10" | C185: 35 | D185: cy | E185: 270 | F185: 9450
B186: Add'l Expansion Joint | C186: 1719 | D186: sft | E186: 3 | F186: 5157
B187: ADA Ramps | C187: 3 | D187: Each | E187: 450 | F187: 1350
F188: 0
F189: 0
B190: 5" Frost Free Stoops | C190: 480 | D190: sft | E190: 5.13 | F190: 2462.4
B191: 2' Stone Backfill | C191: 46 | D191: tons | E191: 40 | F191: 1840
B192: Footer 2' x 1' x 209' | C192: 16 | D192: cy | E192: 275 | F192: 4400
B193: Waste 10% | C193: =ROUNDUP(SUM(C192)*0.1,0) -> 2 | D193: cy | E193: 185 | F193: 370
B194: CIP Wall 8" x 2'3" x 209' | C194: 12 | D194: cy | E194: 165 | F194: 1980
B195: Forming | C195: 1254 | D195: sft | E195: 8.25 | F195: 10345.5
B196: Rebar | C196: 1.5 | D196: tons | E196: 2300 | F196: 3450
F197: 0
F198: 0
B199: Pittsburgh Curb | C199: 270 | D199: lf | E199: 28 | F199: 7560
B200: Rebar | C200: 0.1 | D200: tons | E200: 2300 | F200: 230
... 207 more rows
